[Event "Early-Titled-Tuesday-Blitz-July-09-2024"]
[Site "Chess.com"]
[Date "2024.07.09"]
[Round "5"]
[White "Matols"]
[Black "CristianS27"]
[Result "1-0"]
[WhiteElo "2363"]
[BlackElo "2509"]
[TimeControl "180+1"]
[EndTime "8:54:57 PDT"]
[Termination "Matols won by resignation"]

1. d4 {[%clk 0:03:00.9]} 1... Nf6 {[%clk 0:02:51.1]} 2. c4 {[%clk 0:03:01.1]}
2... g6 {[%clk 0:02:42.9]} 3. g3 {[%clk 0:03:01.1]} 3... Bg7 {[%clk 0:02:41.3]}
4. Nc3 {[%clk 0:03:01.3]} 4... O-O {[%clk 0:02:36.8]} 5. Bg2 {[%clk 0:03:01.5]}
5... d6 {[%clk 0:02:36.8]} 6. Nf3 {[%clk 0:03:01.5]} 6... Nc6 {[%clk 0:02:36.1]}
7. O-O {[%clk 0:03:01.5]} 7... a6 {[%clk 0:02:36.2]} 8. h3 {[%clk 0:02:50.8]}
8... Bd7 {[%clk 0:02:35.6]} 9. e4 {[%clk 0:02:47.6]} 9... e5 {[%clk 0:02:35.2]}
10. d5 {[%clk 0:02:47]} 10... Nd4 {[%clk 0:02:35.4]} 11. Be3 {[%clk 0:02:42.4]}
11... Nxf3+ {[%clk 0:02:30.6]} 12. Qxf3 {[%clk 0:02:41.4]} 12... Qc8 {[%clk
0:02:31.5]} 13. g4 {[%clk 0:02:33.1]} 13... Ne8 {[%clk 0:02:27.3]} 14. Qg3
{[%clk 0:02:30.4]} 14... f5 {[%clk 0:02:25.6]} 15. gxf5 {[%clk 0:02:28.1]} 15...
gxf5 {[%clk 0:02:26.5]} 16. f4 {[%clk 0:02:26]} 16... fxe4 {[%clk 0:02:22.6]}
17. Nxe4 {[%clk 0:02:24]} 17... Kh8 {[%clk 0:02:21.7]} 18. fxe5 {[%clk
0:02:18.6]} 18... dxe5 {[%clk 0:02:11.3]} 19. Rxf8+ {[%clk 0:02:16.7]} 19...
Bxf8 {[%clk 0:02:12.2]} 20. Rf1 {[%clk 0:02:14]} 20... Bg7 {[%clk 0:01:49.6]}
21. Ng5 {[%clk 0:02:08.8]} 21... Nd6 {[%clk 0:01:38.4]} 22. Nf7+ {[%clk
0:01:58]} 22... Nxf7 {[%clk 0:01:35.8]} 23. Rxf7 {[%clk 0:01:58.9]} 23... Bf8
{[%clk 0:01:08.7]} 24. Be4 {[%clk 0:01:52.4]} 1-0

[Event "Early-Titled-Tuesday-Blitz-July-09-2024"]
[Site "Chess.com"]
[Date "2024.07.09"]
[Round "5"]
[White "ACollins05"]
[Black "biveklama"]
[Result "0-1"]
[WhiteElo "2491"]
[BlackElo "2678"]
[TimeControl "180+1"]
[EndTime "8:55:04 PDT"]
[Termination "biveklama won by checkmate"]

1. d4 {[%clk 0:02:59.6]} 1... d6 {[%clk 0:02:58.9]} 2. Nf3 {[%clk 0:02:57.9]}
2... Nc6 {[%clk 0:02:56.8]} 3. e4 {[%clk 0:02:56]} 3... Nf6 {[%clk 0:02:55.5]}
4. Nc3 {[%clk 0:02:55.2]} 4... g6 {[%clk 0:02:54.6]} 5. Be2 {[%clk 0:02:53.6]}
5... Bg7 {[%clk 0:02:54.4]} 6. O-O {[%clk 0:02:53.7]} 6... O-O {[%clk
0:02:54.3]} 7. h3 {[%clk 0:02:54.3]} 7... e5 {[%clk 0:02:53.7]} 8. Be3 {[%clk
0:02:53.2]} 8... Bd7 {[%clk 0:02:49]} 9. Qd2 {[%clk 0:02:52.6]} 9... Re8 {[%clk
0:02:46]} 10. dxe5 {[%clk 0:02:51.5]} 10... Nxe5 {[%clk 0:02:43.8]} 11. Nxe5
{[%clk 0:02:51.4]} 11... Rxe5 {[%clk 0:02:42.5]} 12. Bd3 {[%clk 0:02:40.6]}
12... Bc6 {[%clk 0:02:40.7]} 13. Bd4 {[%clk 0:02:37.3]} 13... Re8 {[%clk
0:02:38.8]} 14. Rfe1 {[%clk 0:02:36.1]} 14... Nh5 {[%clk 0:02:34.5]} 15. Bxg7
{[%clk 0:02:34.7]} 15... Kxg7 {[%clk 0:02:35]} 16. Rad1 {[%clk 0:02:34.5]} 16...
Qf6 {[%clk 0:02:32.1]} 17. Bf1 {[%clk 0:02:21.9]} 17... Qf4 {[%clk 0:02:21.5]}
18. Qxf4 {[%clk 0:02:19.9]} 18... Nxf4 {[%clk 0:02:21.5]} 19. g3 {[%clk
0:02:20.6]} 19... Ne6 {[%clk 0:02:22]} 20. e5 {[%clk 0:02:17.6]} 20... dxe5
{[%clk 0:02:19.8]} 21. Rxe5 {[%clk 0:02:18.5]} 21... Rad8 {[%clk 0:02:20]} 22.
Rxd8 {[%clk 0:02:14.1]} 22... Rxd8 {[%clk 0:02:20.1]} 23. Bc4 {[%clk 0:02:13.1]}
23... Rd2 {[%clk 0:02:13.7]} 24. Re2 {[%clk 0:02:06.7]} 24... Nd4 {[%clk
0:02:03.2]} 25. Re7 {[%clk 0:01:52.5]} 25... Nf3+ {[%clk 0:01:40.1]} 26. Kf1
{[%clk 0:01:52.2]} 26... Rxc2 {[%clk 0:01:40.3]} 27. Rxf7+ {[%clk 0:01:51.4]}
27... Kh6 {[%clk 0:01:38.7]} 28. Bd3 {[%clk 0:01:33.3]} 28... Rc1+ {[%clk
0:01:38.2]} 29. Ke2 {[%clk 0:01:32.3]} 29... Re1# {[%clk 0:01:37.7]} 0-1

[Event "Early-Titled-Tuesday-Blitz-July-09-2024"]
[Site "Chess.com"]
[Date "2024.07.09"]
[Round "5"]
[White "Ditman2007"]
[Black "chrisclaireredfield"]
[Result "1-0"]
[WhiteElo "2713"]
[BlackElo "2509"]
[TimeControl "180+1"]
[EndTime "8:55:05 PDT"]
[Termination "Ditman2007 won by resignation"]

1. e4 {[%clk 0:02:53]} 1... e5 {[%clk 0:02:59.8]} 2. Nf3 {[%clk 0:02:51.4]} 2...
Nf6 {[%clk 0:02:59.9]} 3. d4 {[%clk 0:02:49.5]} 3... Nxe4 {[%clk 0:02:58.7]} 4.
Bd3 {[%clk 0:02:49.3]} 4... d5 {[%clk 0:02:58.6]} 5. Nxe5 {[%clk 0:02:49.7]}
5... Nd7 {[%clk 0:02:58.8]} 6. Nc3 {[%clk 0:02:49.4]} 6... Nxc3 {[%clk
0:02:52.1]} 7. bxc3 {[%clk 0:02:50.3]} 7... Nxe5 {[%clk 0:02:52.1]} 8. dxe5
{[%clk 0:02:51.2]} 8... Bc5 {[%clk 0:02:52.1]} 9. O-O {[%clk 0:02:50.2]} 9...
O-O {[%clk 0:02:51.8]} 10. Qh5 {[%clk 0:02:48.8]} 10... g6 {[%clk 0:02:50.7]}
11. Qh6 {[%clk 0:02:49.2]} 11... Re8 {[%clk 0:02:46.6]} 12. Bg5 {[%clk
0:02:49.3]} 12... Be7 {[%clk 0:02:46]} 13. f4 {[%clk 0:02:15.8]} 13... Be6
{[%clk 0:02:41.3]} 14. Bxe7 {[%clk 0:02:11.7]} 14... Qxe7 {[%clk 0:02:39.7]} 15.
f5 {[%clk 0:02:12.3]} 15... gxf5 {[%clk 0:02:32.5]} 16. Bxf5 {[%clk 0:02:13.2]}
16... Bxf5 {[%clk 0:02:31.4]} 17. Rxf5 {[%clk 0:02:14.1]} 17... Kh8 {[%clk
0:02:29.4]} 18. Raf1 {[%clk 0:02:08.9]} 18... Qc5+ {[%clk 0:01:54.5]} 19. Kh1
{[%clk 0:02:07.1]} 19... Re6 {[%clk 0:01:54.6]} 20. Qh4 {[%clk 0:02:01.7]} 20...
Qe3 {[%clk 0:01:14.4]} 21. Rxf7 {[%clk 0:01:57.1]} 21... Rh6 {[%clk 0:01:01.7]}
22. Rf8+ {[%clk 0:01:53.9]} 22... Rxf8 {[%clk 0:01:01]} 23. Rxf8+ {[%clk
0:01:54.8]} 23... Kg7 {[%clk 0:01:01.6]} 24. Qe7+ {[%clk 0:01:55]} 24... Kg6
{[%clk 0:01:02.1]} 25. Qf7+ {[%clk 0:01:52.5]} 25... Kg5 {[%clk 0:01:02.1]} 26.
Qf5+ {[%clk 0:01:52.7]} 26... Kh4 {[%clk 0:01:02.1]} 27. g3+ {[%clk 0:01:53.1]}
1-0

[Event "Early-Titled-Tuesday-Blitz-July-09-2024"]
[Site "Chess.com"]
[Date "2024.07.09"]
[Round "5"]
[White "Arteler"]
[Black "ilqar_74"]
[Result "0-1"]
[WhiteElo "2295"]
[BlackElo "2903"]
[TimeControl "180+1"]
[EndTime "8:55:06 PDT"]
[Termination "ilqar_74 won by resignation"]

1. d4 {[%clk 0:02:58.1]} 1... Nf6 {[%clk 0:02:56.6]} 2. Nc3 {[%clk 0:02:58.5]}
2... e6 {[%clk 0:02:54.5]} 3. e4 {[%clk 0:02:57.2]} 3... d5 {[%clk 0:02:48.5]}
4. Bg5 {[%clk 0:02:56.9]} 4... dxe4 {[%clk 0:02:48.1]} 5. Nxe4 {[%clk
0:02:54.6]} 5... Be7 {[%clk 0:02:48.7]} 6. Bxf6 {[%clk 0:02:51.2]} 6... Bxf6
{[%clk 0:02:49.6]} 7. Nf3 {[%clk 0:02:47.3]} 7... Nd7 {[%clk 0:02:49.4]} 8. Bd3
{[%clk 0:02:46.1]} 8... b6 {[%clk 0:02:49.4]} 9. O-O {[%clk 0:02:35.8]} 9... Bb7
{[%clk 0:02:49.5]} 10. Qe2 {[%clk 0:02:34.9]} 10... O-O {[%clk 0:02:49.6]} 11.
Rfd1 {[%clk 0:02:30.9]} 11... Qe7 {[%clk 0:02:47]} 12. a4 {[%clk 0:02:30.6]}
12... c5 {[%clk 0:02:45]} 13. Nxf6+ {[%clk 0:02:23.9]} 13... Nxf6 {[%clk
0:02:45.2]} 14. a5 {[%clk 0:02:23.7]} 14... cxd4 {[%clk 0:02:42]} 15. Nxd4
{[%clk 0:02:15.6]} 15... bxa5 {[%clk 0:02:41.4]} 16. Rxa5 {[%clk 0:02:10.2]}
16... Rfd8 {[%clk 0:02:41.5]} 17. Nf5 {[%clk 0:01:55.3]} 17... Qc7 {[%clk
0:02:31]} 18. Nh6+ {[%clk 0:01:00.4]} 18... gxh6 {[%clk 0:02:30.9]} 19. Ra4
{[%clk 0:01:00.5]} 19... Rd5 {[%clk 0:02:24.1]} 20. Rh4 {[%clk 0:00:59.7]} 20...
Rg5 {[%clk 0:02:21.2]} 21. f3 {[%clk 0:00:59.1]} 21... Kg7 {[%clk 0:02:09.8]}
22. Qd2 {[%clk 0:00:51.7]} 22... Bxf3 {[%clk 0:02:00.5]} 0-1

[Event "Early-Titled-Tuesday-Blitz-July-09-2024"]
[Site "Chess.com"]
[Date "2024.07.09"]
[Round "5"]
[White "neistoviupryam"]
[Black "tgpgoat"]
[Result "0-1"]
[WhiteElo "2326"]
[BlackElo "2519"]
[TimeControl "180+1"]
[EndTime "8:55:08 PDT"]
[Termination "tgpgoat won by resignation"]

1. e4 {[%clk 0:03:00.9]} 1... c5 {[%clk 0:03:00]} 2. d4 {[%clk 0:02:57.2]} 2...
cxd4 {[%clk 0:03:00]} 3. c3 {[%clk 0:02:56.9]} 3... dxc3 {[%clk 0:03:00.9]} 4.
Nxc3 {[%clk 0:02:56.9]} 4... Nc6 {[%clk 0:03:01.8]} 5. Nf3 {[%clk 0:02:56.8]}
5... e6 {[%clk 0:03:02]} 6. Bc4 {[%clk 0:02:56.1]} 6... Qc7 {[%clk 0:03:02.4]}
7. O-O {[%clk 0:02:54.3]} 7... Nf6 {[%clk 0:03:02.6]} 8. Nb5 {[%clk 0:02:53.6]}
8... Qb8 {[%clk 0:03:02.6]} 9. e5 {[%clk 0:02:53.6]} 9... a6 {[%clk 0:03:01.3]}
10. exf6 {[%clk 0:02:46.6]} 10... axb5 {[%clk 0:03:01.3]} 11. fxg7 {[%clk
0:02:45.9]} 11... Bxg7 {[%clk 0:03:01.2]} 12. Bxb5 {[%clk 0:02:45.9]} 12... O-O
{[%clk 0:02:59.6]} 13. Bd3 {[%clk 0:02:39.6]} 13... d5 {[%clk 0:02:55.1]} 14.
Ng5 {[%clk 0:02:35.3]} 14... h6 {[%clk 0:02:54.8]} 15. Qh5 {[%clk 0:02:33.8]}
15... e5 {[%clk 0:02:50.6]} 16. Nh7 {[%clk 0:02:15.8]} 16... e4 {[%clk
0:02:03.6]} 17. Bxh6 {[%clk 0:01:43.4]} 17... Qe5 {[%clk 0:01:41]} 18. Qxe5
{[%clk 0:01:42.2]} 18... Nxe5 {[%clk 0:01:41.4]} 19. Bxg7 {[%clk 0:01:34.2]}
19... Kxg7 {[%clk 0:01:41.7]} 20. Nxf8 {[%clk 0:01:33]} 20... Nxd3 {[%clk
0:01:41]} 21. f3 {[%clk 0:01:26.5]} 21... e3 {[%clk 0:01:36.7]} 22. Rfd1 {[%clk
0:01:20.9]} 22... Bf5 {[%clk 0:01:31.4]} 23. g4 {[%clk 0:01:20.5]} 23... e2
{[%clk 0:01:30.6]} 24. Rd2 {[%clk 0:01:14.1]} 24... e1=Q+ {[%clk 0:01:29.2]} 0-1

[Event "Early-Titled-Tuesday-Blitz-July-09-2024"]
[Site "Chess.com"]
[Date "2024.07.09"]
[Round "5"]
[White "LunaTheTuna2013"]
[Black "aanshnerurkar"]
[Result "0-1"]
[WhiteElo "2068"]
[BlackElo "2466"]
[TimeControl "180+1"]
[EndTime "8:55:09 PDT"]
[Termination "aanshnerurkar won by resignation"]

1. d4 {[%clk 0:03:00.9]} 1... Nf6 {[%clk 0:02:59.8]} 2. c4 {[%clk 0:03:00.6]}
2... e6 {[%clk 0:03:00.1]} 3. Nc3 {[%clk 0:03:00.3]} 3... Bb4 {[%clk 0:03:00.1]}
4. e3 {[%clk 0:03:00.5]} 4... O-O {[%clk 0:02:59.4]} 5. Bd3 {[%clk 0:02:59.4]}
5... Bxc3+ {[%clk 0:02:54.1]} 6. bxc3 {[%clk 0:02:58.4]} 6... d6 {[%clk
0:02:54.3]} 7. Nf3 {[%clk 0:02:57.5]} 7... b6 {[%clk 0:02:53.7]} 8. O-O {[%clk
0:02:56.1]} 8... Bb7 {[%clk 0:02:53.4]} 9. Bb2 {[%clk 0:02:49.8]} 9... Nbd7
{[%clk 0:02:52.1]} 10. Rc1 {[%clk 0:02:48.3]} 10... e5 {[%clk 0:02:51.1]} 11. e4
{[%clk 0:02:46.8]} 11... Bxe4 {[%clk 0:02:47.9]} 12. Bxe4 {[%clk 0:02:46.1]}
12... Nxe4 {[%clk 0:02:47.6]} 13. Re1 {[%clk 0:02:45.2]} 13... Nef6 {[%clk
0:02:44.7]} 14. dxe5 {[%clk 0:02:45]} 14... dxe5 {[%clk 0:02:41.9]} 15. Nxe5
{[%clk 0:02:45.1]} 15... Nxe5 {[%clk 0:02:42.2]} 16. Rxe5 {[%clk 0:02:46]} 16...
Qxd1+ {[%clk 0:02:38.8]} 17. Rxd1 {[%clk 0:02:45.7]} 17... Rad8 {[%clk
0:02:37.1]} 18. Rde1 {[%clk 0:02:45.3]} 18... Rfe8 {[%clk 0:02:31.5]} 19. Rxe8+
{[%clk 0:02:44.3]} 19... Rxe8 {[%clk 0:02:28.2]} 20. Rxe8+ {[%clk 0:02:44.1]}
20... Nxe8 {[%clk 0:02:28.3]} 21. f3 {[%clk 0:02:44.7]} 21... c5 {[%clk
0:02:26.4]} 22. Kf2 {[%clk 0:02:38.5]} 22... Nd6 {[%clk 0:02:25.9]} 23. Bc1
{[%clk 0:02:38.1]} 23... Kf8 {[%clk 0:02:21.4]} 24. Bf4 {[%clk 0:02:38.4]} 24...
Nxc4 {[%clk 0:02:21.1]} 25. Ke2 {[%clk 0:02:33.9]} 25... Ke7 {[%clk 0:02:20.1]}
26. Kd3 {[%clk 0:02:34]} 26... Nd6 {[%clk 0:02:19.6]} 27. a4 {[%clk 0:02:28.8]}
27... Ke6 {[%clk 0:02:15.9]} 28. Bg3 {[%clk 0:02:25.7]} 28... Kd5 {[%clk
0:02:14.9]} 29. Bf4 {[%clk 0:02:23.3]} 29... a6 {[%clk 0:02:00]} 30. Bg3 {[%clk
0:02:22.3]} 30... Nc4 {[%clk 0:01:57.8]} 31. Bc7 {[%clk 0:02:17.8]} 31... Nb2+
{[%clk 0:01:56]} 32. Kc2 {[%clk 0:02:14]} 32... Nxa4 {[%clk 0:01:55.4]} 33. Kb3
{[%clk 0:02:13.1]} 33... b5 {[%clk 0:01:55.7]} 34. c4+ {[%clk 0:02:07.5]} 34...
Kc6 {[%clk 0:01:55.1]} 35. Be5 {[%clk 0:02:04.8]} 35... f6 {[%clk 0:01:54.8]}
36. Bf4 {[%clk 0:01:54.5]} 36... Nb6 {[%clk 0:01:54.3]} 37. cxb5+ {[%clk
0:01:52.9]} 37... axb5 {[%clk 0:01:54]} 38. Be3 {[%clk 0:01:52.3]} 38... Nd5
{[%clk 0:01:54]} 39. Bf2 {[%clk 0:01:52.5]} 39... c4+ {[%clk 0:01:54.1]} 40. Kc2
{[%clk 0:01:52.6]} 40... b4 {[%clk 0:01:54.7]} 41. Be1 {[%clk 0:01:52.3]} 41...
Kb5 {[%clk 0:01:54.6]} 42. Bf2 {[%clk 0:01:51.4]} 42... Ka4 {[%clk 0:01:52.5]}
43. Bd4 {[%clk 0:01:51.1]} 43... b3+ {[%clk 0:01:51.4]} 44. Kb2 {[%clk
0:01:50.8]} 44... c3+ {[%clk 0:01:49.7]} 45. Bxc3 {[%clk 0:01:49.9]} 45... Nxc3
{[%clk 0:01:50]} 46. Kxc3 {[%clk 0:01:50.8]} 46... Ka3 {[%clk 0:01:50.6]} 47.
Kd2 {[%clk 0:01:51.3]} 47... b2 {[%clk 0:01:51.1]} 48. Kc2 {[%clk 0:01:51.9]}
48... Ka2 {[%clk 0:01:51.7]} 0-1

[Event "Early-Titled-Tuesday-Blitz-July-09-2024"]
[Site "Chess.com"]
[Date "2024.07.09"]
[Round "5"]
[White "EvilMorty23"]
[Black "Andrey-Ivanov2011"]
[Result "1-0"]
[WhiteElo "2388"]
[BlackElo "2153"]
[TimeControl "180+1"]
[EndTime "8:55:12 PDT"]
[Termination "EvilMorty23 won by checkmate"]

1. e4 {[%clk 0:03:00.9]} 1... c5 {[%clk 0:02:55.9]} 2. d4 {[%clk 0:02:58.6]}
2... cxd4 {[%clk 0:02:51.9]} 3. c3 {[%clk 0:02:59.1]} 3... dxc3 {[%clk
0:02:51.4]} 4. Nxc3 {[%clk 0:03:00]} 4... Nc6 {[%clk 0:02:51.5]} 5. Nf3 {[%clk
0:02:58.3]} 5... e6 {[%clk 0:02:52]} 6. Be3 {[%clk 0:02:54]} 6... Bb4 {[%clk
0:02:51.6]} 7. Bc4 {[%clk 0:02:52.5]} 7... Nge7 {[%clk 0:02:51.3]} 8. e5 {[%clk
0:02:51.3]} 8... O-O {[%clk 0:02:49.7]} 9. O-O {[%clk 0:02:49.9]} 9... Ng6
{[%clk 0:02:48.9]} 10. Re1 {[%clk 0:02:41.9]} 10... Bxc3 {[%clk 0:02:29.7]} 11.
bxc3 {[%clk 0:02:40.8]} 11... b6 {[%clk 0:02:30]} 12. Bg5 {[%clk 0:02:35.4]}
12... f6 {[%clk 0:02:16]} 13. exf6 {[%clk 0:02:33.1]} 13... gxf6 {[%clk
0:02:16.9]} 14. Bh6 {[%clk 0:02:32.9]} 14... Re8 {[%clk 0:02:14]} 15. Qd6 {[%clk
0:02:24.8]} 15... Qe7 {[%clk 0:02:10.9]} 16. Bxe6+ {[%clk 0:02:21.4]} 16... dxe6
{[%clk 0:01:36.1]} 17. Qxc6 {[%clk 0:02:21.6]} 17... Bd7 {[%clk 0:01:35.9]} 18.
Qe4 {[%clk 0:02:19.8]} 18... Rac8 {[%clk 0:01:35.1]} 19. h4 {[%clk 0:02:18.9]}
19... Bc6 {[%clk 0:01:32.4]} 20. Qg4 {[%clk 0:02:18.2]} 20... Bxf3 {[%clk
0:01:26.3]} 21. Qxf3 {[%clk 0:02:19.1]} 21... Nxh4 {[%clk 0:01:20.4]} 22. Qg4+
{[%clk 0:02:13.5]} 22... Ng6 {[%clk 0:01:14.6]} 23. Re3 {[%clk 0:02:13.7]} 23...
Rc5 {[%clk 0:01:07.9]} 24. Rae1 {[%clk 0:02:12.5]} 24... e5 {[%clk 0:00:56.3]}
25. Rg3 {[%clk 0:02:12.3]} 25... Qe6 {[%clk 0:00:47.2]} 26. Qh5 {[%clk 0:02:12]}
26... Kf7 {[%clk 0:00:44.6]} 27. Be3 {[%clk 0:02:10.4]} 27... Rc4 {[%clk
0:00:37.4]} 28. Qxh7+ {[%clk 0:02:10]} 28... Kf8 {[%clk 0:00:35.2]} 29. Bh6#
{[%clk 0:02:08.7]} 1-0

[Event "Early-Titled-Tuesday-Blitz-July-09-2024"]
[Site "Chess.com"]
[Date "2024.07.09"]
[Round "5"]
[White "GMAkobianSTL"]
[Black "english_player_89"]
[Result "1-0"]
[WhiteElo "2816"]
[BlackElo "2527"]
[TimeControl "180+1"]
[EndTime "8:55:18 PDT"]
[Termination "GMAkobianSTL won by resignation"]

1. d4 {[%clk 0:03:00.9]} 1... d5 {[%clk 0:02:59.7]} 2. c4 {[%clk 0:02:59.2]}
2... c6 {[%clk 0:03:00.1]} 3. cxd5 {[%clk 0:02:58.5]} 3... cxd5 {[%clk 0:03:01]}
4. Nf3 {[%clk 0:02:58.7]} 4... Nf6 {[%clk 0:03:01.7]} 5. Nc3 {[%clk 0:02:58.1]}
5... Nc6 {[%clk 0:03:02.3]} 6. Bf4 {[%clk 0:02:57.5]} 6... Bf5 {[%clk
0:03:01.8]} 7. e3 {[%clk 0:02:57.1]} 7... e6 {[%clk 0:03:01.9]} 8. Qb3 {[%clk
0:02:57]} 8... Bb4 {[%clk 0:03:01]} 9. Ne5 {[%clk 0:02:56.3]} 9... Bxc3+ {[%clk
0:02:59]} 10. bxc3 {[%clk 0:02:55.6]} 10... Nxe5 {[%clk 0:02:54]} 11. Bxe5
{[%clk 0:02:55.2]} 11... Qb6 {[%clk 0:02:43.5]} 12. Bb5+ {[%clk 0:02:49.8]}
12... Kf8 {[%clk 0:02:32.6]} 13. O-O {[%clk 0:02:48.1]} 13... Kg8 {[%clk
0:02:28.4]} 14. f3 {[%clk 0:02:39.1]} 14... a6 {[%clk 0:02:21.1]} 15. Be2 {[%clk
0:02:38.1]} 15... Qxb3 {[%clk 0:02:16.9]} 16. axb3 {[%clk 0:02:37.4]} 16... Rc8
{[%clk 0:02:16.1]} 17. c4 {[%clk 0:02:35.9]} 17... Bc2 {[%clk 0:02:06.1]} 18. c5
{[%clk 0:02:33.7]} 18... Nd7 {[%clk 0:02:02.3]} 19. Bd6 {[%clk 0:02:32]} 19...
f6 {[%clk 0:02:01.3]} 20. Rfc1 {[%clk 0:02:28.1]} 20... Bg6 {[%clk 0:01:29.9]}
21. b4 {[%clk 0:02:25.8]} 21... Be8 {[%clk 0:01:21]} 22. b5 {[%clk 0:02:24.1]}
22... axb5 {[%clk 0:01:18.1]} 23. Bxb5 {[%clk 0:02:18.3]} 23... Kf7 {[%clk
0:00:53.2]} 24. Ra7 {[%clk 0:02:13.4]} 24... b6 {[%clk 0:00:27.2]} 25. Bxd7
{[%clk 0:02:10.7]} 25... Bxd7 {[%clk 0:00:26]} 26. Rxd7+ {[%clk 0:02:10.1]}
26... Kg6 {[%clk 0:00:26.9]} 27. c6 {[%clk 0:02:10.1]} 1-0

[Event "Early-Titled-Tuesday-Blitz-July-09-2024"]
[Site "Chess.com"]
[Date "2024.07.09"]
[Round "5"]
[White "wannabe2700"]
[Black "JunjiCol"]
[Result "0-1"]
[WhiteElo "2540"]
[BlackElo "2369"]
[TimeControl "180+1"]
[EndTime "8:55:21 PDT"]
[Termination "JunjiCol won by resignation"]

1. b3 {[%clk 0:03:00.9]} 1... a5 {[%clk 0:02:57.9]} 2. Nf3 {[%clk 0:02:59.1]}
2... a4 {[%clk 0:02:57.7]} 3. b4 {[%clk 0:02:59.1]} 3... e5 {[%clk 0:02:51.2]}
4. a3 {[%clk 0:02:55.8]} 4... e4 {[%clk 0:02:51.3]} 5. Nd4 {[%clk 0:02:55.9]}
5... c5 {[%clk 0:02:39]} 6. Nb5 {[%clk 0:02:54.5]} 6... cxb4 {[%clk 0:02:37.4]}
7. axb4 {[%clk 0:02:55.3]} 7... Bxb4 {[%clk 0:02:37.5]} 8. c3 {[%clk 0:02:55.9]}
8... Qa5 {[%clk 0:02:27]} 9. e3 {[%clk 0:02:46.3]} 9... Be7 {[%clk 0:02:26.9]}
10. N1a3 {[%clk 0:02:37.5]} 10... d5 {[%clk 0:02:26.6]} 11. c4 {[%clk
0:02:34.4]} 11... Nf6 {[%clk 0:02:19.5]} 12. cxd5 {[%clk 0:02:34.6]} 12... Nxd5
{[%clk 0:02:14]} 13. Nc4 {[%clk 0:02:34.7]} 13... Qd8 {[%clk 0:02:14.1]} 14.
Rxa4 {[%clk 0:02:32.1]} 14... Rxa4 {[%clk 0:02:13.9]} 15. Qxa4 {[%clk 0:02:33]}
15... O-O {[%clk 0:02:14.1]} 16. Na5 {[%clk 0:02:10.2]} 16... Nd7 {[%clk
0:02:09.1]} 17. Qxe4 {[%clk 0:01:34.1]} 17... Nc5 {[%clk 0:02:08.5]} 18. Qf3
{[%clk 0:01:25.1]} 18... Qxa5 {[%clk 0:02:07.2]} 19. Qxd5 {[%clk 0:01:25.2]}
19... Be6 {[%clk 0:02:06.9]} 20. Qe5 {[%clk 0:01:18.1]} 20... Rc8 {[%clk
0:01:55.6]} 21. Qb2 {[%clk 0:01:09.4]} 21... Bf6 {[%clk 0:01:49.4]} 22. Qa3
{[%clk 0:00:55.6]} 22... Nb3 {[%clk 0:01:45.6]} 23. Nc3 {[%clk 0:00:43.7]} 23...
Bxc3 {[%clk 0:01:41.3]} 0-1

[Event "Early-Titled-Tuesday-Blitz-July-09-2024"]
[Site "Chess.com"]
[Date "2024.07.09"]
[Round "5"]
[White "UnTucopalaTimba"]
[Black "Twinstulle"]
[Result "0-1"]
[WhiteElo "2140"]
[BlackElo "2377"]
[TimeControl "180+1"]
[EndTime "8:55:21 PDT"]
[Termination "Twinstulle won by resignation"]

1. e4 {[%clk 0:03:00]} 1... c5 {[%clk 0:02:59.2]} 2. Nf3 {[%clk 0:02:59.6]} 2...
e6 {[%clk 0:02:59.4]} 3. c3 {[%clk 0:02:56.6]} 3... Nf6 {[%clk 0:02:59.1]} 4. e5
{[%clk 0:02:56.2]} 4... Nd5 {[%clk 0:02:59.7]} 5. d4 {[%clk 0:02:56.3]} 5...
cxd4 {[%clk 0:03:00.6]} 6. cxd4 {[%clk 0:02:56.6]} 6... d6 {[%clk 0:03:00.9]} 7.
Bc4 {[%clk 0:02:56.7]} 7... Be7 {[%clk 0:02:59.5]} 8. O-O {[%clk 0:02:53]} 8...
O-O {[%clk 0:02:59.3]} 9. Qe2 {[%clk 0:02:49.5]} 9... Nc6 {[%clk 0:02:55.6]} 10.
Rd1 {[%clk 0:02:48.9]} 10... Nb6 {[%clk 0:02:47.8]} 11. Bd3 {[%clk 0:02:46.3]}
11... Nb4 {[%clk 0:02:44]} 12. Be4 {[%clk 0:02:30.3]} 12... d5 {[%clk
0:02:42.9]} 13. Bd3 {[%clk 0:02:27.2]} 13... Nxd3 {[%clk 0:02:42.1]} 14. Qxd3
{[%clk 0:02:27.5]} 14... Bd7 {[%clk 0:02:39.2]} 15. b3 {[%clk 0:02:23.3]} 15...
a5 {[%clk 0:02:31.9]} 16. Bf4 {[%clk 0:02:16.2]} 16... a4 {[%clk 0:02:31.3]} 17.
Nbd2 {[%clk 0:02:14.7]} 17... Nc8 {[%clk 0:02:09.6]} 18. Nf1 {[%clk 0:02:04.3]}
18... Na7 {[%clk 0:02:06.9]} 19. Ng3 {[%clk 0:01:56.5]} 19... Nc6 {[%clk
0:02:06.6]} 20. a3 {[%clk 0:01:47.3]} 20... Na5 {[%clk 0:01:59.1]} 21. b4 {[%clk
0:01:45]} 21... Nc4 {[%clk 0:01:58.5]} 22. Nd2 {[%clk 0:01:20.4]} 22... Nb2
{[%clk 0:01:55.3]} 23. Qe2 {[%clk 0:01:19.8]} 23... Nxd1 {[%clk 0:01:55.4]} 24.
Qxd1 {[%clk 0:01:19.9]} 24... Bb5 {[%clk 0:01:54.2]} 25. Qg4 {[%clk 0:01:18.2]}
25... f5 {[%clk 0:01:41.9]} 26. exf6 {[%clk 0:01:12.1]} 26... Rxf6 {[%clk
0:01:41.9]} 27. Nh5 {[%clk 0:01:10.5]} 27... Rg6 {[%clk 0:01:42]} 28. Qe2 {[%clk
0:01:05.5]} 28... Bxe2 {[%clk 0:01:40.8]} 0-1